bitfinex-derivatives/quotes_BTCF0:USTF0_20250508
["timestamp","ask_amount","ask_price","bid_price","bid_amount"]
[1746675306807,0.5116518,98784.0,98783.0,0.62180394]
[1746675306808,0.2414,98784.0,98783.0,0.62180394]
[1746675307212,0.2758518,98784.0,98783.0,0.69240394]
[1746675308216,0.2758518,98784.0,98783.0,0.69340394]
[1746675309308,0.2758518,98784.0,98783.0,0.49095014]
[1746675309910,0.2748518,98784.0,98783.0,0.48995014]
[1746675310114,0.2758518,98784.0,98783.0,0.49095014]
[1746675310301,0.2758518,98784.0,98783.0,0.69340394]
[1746675310302,0.002,98784.0,98783.0,0.69340394]
[1746675310808,0.002,98784.0,98783.0,1.05420394]
[1746675311209,0.002,98784.0,98783.0,1.22220394]
[1746675311911,0.08102,98785.0,98784.0,0.2024518]
[1746675312108,0.08102,98785.0,98784.0,0.7204518]
[1746675312309,0.08102,98785.0,98784.0,0.9292518]
[1746675312914,0.2834697,98785.0,98784.0,0.7268]
[1746675313116,0.2834697,98785.0,98784.0,0.5588]
[1746675314017,0.2854697,98785.0,98784.0,0.4698]
[1746675314217,0.4534697,98785.0,98784.0,0.4698]
[1746675315212,0.2854697,98785.0,98784.0,0.6722518]
[1746675316308,0.2854697,98785.0,98784.0,0.4698]
[1746675317121,0.2844697,98785.0,98784.0,0.4698]
[1746675317423,0.3559697,98785.0,98784.0,0.4698]
[1746675317715,0.3549697,98785.0,98784.0,0.4698]
[1746675317923,0.3559697,98785.0,98784.0,0.6722518]
[1746675318613,0.3559697,98785.0,98784.0,0.5546]
[1746675318813,0.3549697,98785.0,98784.0,0.7560518]
[1746675319015,0.3559697,98785.0,98784.0,0.7570518]
[1746675319930,0.3559697,98785.0,98784.0,0.5546]
[1746675320916,0.3549697,98785.0,98784.0,0.5546]
[1746675321120,0.3559697,98785.0,98784.0,0.5546]
[1746675321518,0.3549697,98785.0,98784.0,0.5546]
[1746675321709,0.3559697,98785.0,98784.0,0.5546]
[1746675321914,0.3559697,98785.0,98784.0,0.4862]
[1746675322221,0.5239697,98785.0,98784.0,0.4862]
[1746675322426,0.5239697,98785.0,98784.0,0.4153]
[1746675322722,0.5239697,98785.0,98784.0,0.3458]
[1746675323123,0.3559697,98785.0,98784.0,0.3458]
[1746675323624,0.3549697,98785.0,98784.0,0.3458]
[1746675323923,0.3559697,98785.0,98784.0,0.3458]
[1746675324512,0.3559697,98785.0,98784.0,0.3958]
[1746675325024,0.3549697,98785.0,98784.0,0.3948]
[1746675325226,0.5239697,98785.0,98784.0,0.3958]
[1746675327126,0.5229697,98785.0,98784.0,0.3958]
[1746675327325,0.5239697,98785.0,98784.0,0.3958]
[1746675328326,0.5239697,98785.0,98784.0,0.3948]
[1746675328527,0.5239697,98785.0,98784.0,0.3958]
[1746675331029,0.5229697,98785.0,98784.0,0.3958]
[1746675331218,0.5239697,98785.0,98784.0,0.3958]
[1746675332630,0.5229697,98785.0,98784.0,0.3958]
[1746675332831,0.5239697,98785.0,98784.0,0.3958]
[1746675333625,0.5229697,98785.0,98784.0,0.4358]
[1746675333830,0.5239697,98785.0,98784.0,0.4358]
[1746675335830,0.5229697,98785.0,98784.0,0.4358]
[1746675336035,0.5239697,98785.0,98784.0,0.4358]
[1746675337529,0.32152,98785.0,98784.0,0.6382518]
[1746675337932,0.32152,98785.0,98784.0,0.499]
[1746675338131,0.38572,98785.0,98784.0,0.499]
[1746675338520,0.38472,98785.0,98784.0,0.6372518]
[1746675338725,0.38572,98785.0,98784.0,0.7638518]
[1746675339020,0.32052,98785.0,98784.0,0.7638518]
[1746675339228,0.15352,98785.0,98784.0,0.8316518]
[1746675340025,0.15352,98785.0,98784.0,0.8516518]
[1746675340231,0.15352,98785.0,98784.0,0.8316518]
[1746675340825,0.15352,98785.0,98784.0,0.6292]
[1746675341027,0.15352,98785.0,98784.0,0.7638518]
[1746675341228,0.32152,98785.0,98784.0,0.7638518]
[1746675341731,0.32152,98785.0,98784.0,0.7838518]
[1746675341933,0.32152,98785.0,98784.0,0.7638518]
[1746675342325,0.32152,98785.0,98784.0,0.499]
[1746675342532,0.32052,98785.0,98784.0,0.6382518]
[1746675342733,0.32152,98785.0,98784.0,0.6382518]
[1746675343127,0.32152,98785.0,98784.0,0.7129518]
[1746675343448,0.32152,98785.0,98784.0,0.7026718]
[1746675343826,0.32052,98785.0,98784.0,0.7026718]
[1746675344027,0.25102,98785.0,98784.0,0.7702718]
[1746675344226,0.08302,98785.0,98784.0,0.6957518]
[1746675344429,0.08302,98785.0,98784.0,0.7802718]
[1746675345131,0.08302,98785.0,98784.0,0.9482718]
[1746675346131,0.064,98792.0,98791.0,0.2024374]
[1746675346337,0.064,98792.0,98791.0,1.0732374]
[1746675346723,0.2024146,98803.0,98798.0,0.2024223]
[1746675346927,0.2024146,98803.0,98799.0,0.192]
[1746675347128,0.0646,98802.0,98799.0,0.582]
[1746675347330,0.2670159,98802.0,98799.0,0.50098]
[1746675347626,0.267015,98802.0,98799.0,0.50098]
[1746675347827,0.2024173,98801.0,98799.0,0.50098]
[1746675348023,0.168,98803.0,98799.0,0.50098]
[1746675348233,0.09357233,98824.0,98802.0,0.3608]
[1746675348439,0.09357233,98824.0,98815.0,0.26263556]
[1746675348440,0.081,98816.0,98815.0,0.26263556]
[1746675348631,0.081,98816.0,98815.0,1.01693556]
[1746675348932,0.081,98816.0,98815.0,0.9566882]
[1746675349133,0.0505819,98845.0,98815.0,0.9543]
[1746675349335,0.0505819,98845.0,98836.0,0.2023442]
[1746675349534,0.001,98856.0,98847.0,0.2023227]
[1746675349744,0.0505777,98853.0,98847.0,0.26740462]
[1746675349939,0.0505784,98852.0,98847.0,0.26740462]
[1746675350247,0.2023207,98848.0,98847.0,0.18642462]
[1746675350649,0.2033207,98848.0,98847.0,0.18942462]
[1746675352134,0.3713207,98848.0,98847.0,0.18942462]
[1746675352334,0.3713207,98848.0,98847.0,0.18842462]
[1746675352941,0.3723207,98848.0,98847.0,0.18942462]
[1746675353143,0.3723207,98848.0,98847.0,0.19942462]
[1746675353337,0.4370207,98848.0,98847.0,0.19942462]
[1746675355338,0.169,98848.0,98847.0,0.39974732]
[1746675355640,0.169,98848.0,98847.0,0.40174732]
[1746675355641,0.17,98848.0,98847.0,0.40174732]
[1746675355848,0.169,98848.0,98847.0,0.40074732]
[1746675356044,0.17,98848.0,98847.0,0.46174732]
[1746675356342,0.002,98848.0,98847.0,0.46174732]
[1746675357143,0.002,98848.0,98847.0,0.62974732]
[1746675358141,0.002,98848.0,98847.0,0.46174732]
[1746675360144,0.002,98848.0,98847.0,0.62974732]
[1746675360734,0.002,98848.0,98847.0,0.82974732]
[1746675360939,0.002,98848.0,98847.0,0.81974732]
[1746675361139,0.05233567,98850.0,98849.0,0.2023186]
[1746675361447,0.00711966,98860.0,98859.0,0.2022982]
[1746675361635,0.00711966,98860.0,98859.0,0.6267782]
[1746675362141,0.17511966,98860.0,98859.0,0.6267782]
[1746675362346,0.17511966,98860.0,98859.0,0.6917782]
[1746675362545,0.17611966,98860.0,98859.0,0.6927782]
[1746675362745,0.17611966,98860.0,98859.0,0.7537782]
[1746675363253,0.17711966,98860.0,98859.0,0.7547782]
[1746675365047,0.17711966,98860.0,98859.0,0.6287782]
[1746675366349,0.17711966,98860.0,98859.0,0.42648]
[1746675366546,0.17711966,98860.0,98859.0,0.6287782]
[1746675366750,0.17711966,98860.0,98859.0,0.42648]
[1746675367248,0.17711966,98860.0,98859.0,0.6287782]
[1746675370752,0.17711966,98860.0,98859.0,0.42648]
[1746675371051,0.17711966,98860.0,98859.0,0.6287782]
[1746675372248,0.21759966,98860.0,98859.0,0.5442982]
[1746675372449,0.21759966,98860.0,98859.0,0.6284982]
[1746675374754,0.27979966,98860.0,98859.0,0.6284982]
[1746675377753,0.27979966,98860.0,98859.0,0.7554982]
[1746675379255,0.27979966,98860.0,98859.0,0.4878]
[1746675379753,0.34249966,98860.0,98859.0,0.4878]
[1746675380048,0.34249966,98860.0,98859.0,0.6900982]
[1746675383860,0.34249966,98860.0,98859.0,0.6058982]
[1746675384158,0.34249966,98860.0,98859.0,0.6900982]
[1746675385551,0.34249966,98860.0,98859.0,0.6058982]
[1746675385757,0.34249966,98860.0,98859.0,0.6900982]
[1746675387244,0.34249966,98860.0,98859.0,0.6284982]
[1746675390058,0.34249966,98860.0,98859.0,0.4262]
[1746675390253,0.34249966,98860.0,98859.0,0.6284982]
[1746675390448,0.27979966,98860.0,98859.0,0.6284982]
[1746675390858,0.27979966,98860.0,98859.0,0.6914982]
[1746675393164,0.27995477,98860.0,98859.0,0.6914982]
[1746675395458,0.05207649,98890.0,98859.0,0.8]
[1746675395662,0.0635,98871.0,98870.0,0.2022757]
[1746675395864,0.0635,98871.0,98870.0,1.0230757]
[1746675396261,0.2657736,98871.0,98870.0,0.8447]
[1746675396460,0.2657736,98871.0,98870.0,0.7808]
[1746675396660,0.2657736,98871.0,98870.0,0.3908]
[1746675396860,0.2657736,98871.0,98870.0,0.0942]
[1746675397265,0.4357736,98871.0,98870.0,0.0952]
[1746675397452,0.4357736,98871.0,98870.0,0.011]
[1746675397657,0.4387736,98871.0,98870.0,0.012]
[1746675398254,0.4387736,98871.0,98870.0,0.062]
[1746675398558,0.2022961,98860.0,98859.0,0.08392]
[1746675398753,0.2022961,98860.0,98859.0,0.36392]
[1746675398958,0.2022961,98860.0,98859.0,0.35392]
[1746675399161,0.3702961,98860.0,98859.0,0.08392]
[1746675399460,0.4935961,98860.0,98859.0,0.00298]
[1746675399661,0.2913,98860.0,98859.0,0.01]
[1746675399867,0.4945961,98860.0,98859.0,0.012]
[1746675400160,0.4955961,98860.0,98859.0,0.013]
[1746675400465,0.2023088,98854.0,98853.0,0.08396]
[1746675400652,0.2023088,98854.0,98853.0,0.10396]
[1746675400856,0.2023088,98854.0,98853.0,0.42396]
[1746675401056,0.2023088,98854.0,98853.0,0.08396]
[1746675401364,0.4930088,98854.0,98853.0,0.35396]
[1746675401564,0.4930088,98854.0,98853.0,0.40396]
[1746675401763,0.4940088,98854.0,98853.0,0.13596]
[1746675401963,0.4950088,98854.0,98853.0,0.38596]
[1746675405364,0.4950088,98854.0,98853.0,0.302]
[1746675407268,0.2927,98854.0,98853.0,0.302]
[1746675407470,0.4950084,98854.0,98853.0,0.302]
[1746675411270,0.4950084,98854.0,98853.0,0.32104]
[1746675412964,0.2927,98854.0,98853.0,0.5233504]
[1746675413372,0.2306,98854.0,98853.0,0.5633504]
[1746675413669,0.2306,98854.0,98853.0,0.6281504]
[1746675414167,0.0626,98854.0,98853.0,0.6281504]
[1746675417075,0.2306,98854.0,98853.0,0.5881504]
[1746675417279,0.2306,98854.0,98853.0,0.5981504]
[1746675418272,0.0626,98854.0,98853.0,0.5171904]
[1746675419278,0.2306,98854.0,98853.0,0.5171904]
[1746675424698,0.17,98854.0,98853.0,0.8779904]
[1746675425093,0.002,98854.0,98853.0,0.8779904]
[1746675425593,0.002,98854.0,98853.0,0.66568]
[1746675425800,0.002,98854.0,98853.0,0.8679904]
[1746675426099,0.17,98854.0,98853.0,0.8679904]
[1746675426503,0.17,98854.0,98853.0,0.8879904]
[1746675430498,0.17,98854.0,98853.0,0.5271904]
[1746675430699,0.17,98854.0,98853.0,0.8879904]
[1746675431894,0.17,98854.0,98853.0,0.9716704]
[1746675436201,0.2357,98854.0,98853.0,0.9716704]
[1746675436599,0.2357,98854.0,98853.0,0.9068704]
[1746675437993,0.2357,98854.0,98853.0,1.0316704]
[1746675438195,0.2357,98854.0,98853.0,1.0116704]
[1746675438603,0.2357,98854.0,98853.0,1.0316704]
[1746675438802,0.2357,98854.0,98853.0,0.6708704]
[1746675439697,0.2357,98854.0,98853.0,0.5460704]
[1746675440605,0.2357,98854.0,98853.0,0.4623904]
[1746675440800,0.2357,98854.0,98853.0,0.5460704]
[1746675444704,0.4380084,98854.0,98853.0,0.24008]
[1746675444908,0.2357,98854.0,98840.0,0.3608]
[1746675445204,0.202335,98841.0,98840.0,0.28135757]
[1746675445502,0.2023432,98837.0,98836.0,0.1331251]
[1746675445708,0.2023432,98837.0,98836.0,0.4131251]
[1746675445901,0.2023432,98837.0,98836.0,0.4431251]
[1746675446095,0.3703432,98837.0,98836.0,0.4431251]
[1746675447206,0.3713432,98837.0,98836.0,0.4431251]
[1746675447604,0.3713432,98837.0,98836.0,0.6454703]
[1746675447605,0.169,98837.0,98836.0,0.6454703]
[1746675447799,0.17,98837.0,98836.0,0.6454703]
[1746675448200,0.169,98837.0,98836.0,0.6654703]
[1746675448401,0.17,98837.0,98836.0,0.7820703]
[1746675448601,0.17,98837.0,98836.0,0.78974941]
[1746675448806,0.169,98837.0,98836.0,0.78974941]
[1746675449006,0.17,98837.0,98836.0,0.78974941]
[1746675449711,0.17,98837.0,98836.0,1.07974941]
[1746675450206,0.002,98837.0,98836.0,1.07974941]
[1746675450414,0.08096,98846.0,98845.0,0.2023268]
[1746675450605,0.08096,98846.0,98845.0,1.0731268]
[1746675452109,0.08196,98846.0,98845.0,1.0731268]
[1746675452612,0.08196,98846.0,98845.0,1.0741268]
[1746675452613,0.08296,98846.0,98845.0,1.0741268]
[1746675453113,0.25096,98846.0,98845.0,1.0741268]
[1746675453813,0.25096,98846.0,98845.0,0.8618]
[1746675454007,0.4532848,98846.0,98845.0,0.8618]
[1746675454208,0.5719848,98846.0,98845.0,0.6718]
[1746675454811,0.5719848,98846.0,98845.0,0.6818]
[1746675455512,0.5719848,98846.0,98845.0,0.6918]
[1746675457010,0.5719848,98846.0,98845.0,0.6818]
[1746675457309,0.5719848,98846.0,98845.0,0.331]
[1746675457509,0.5719848,98846.0,98845.0,0.321]
[1746675458414,0.5719848,98846.0,98845.0,0.341]
[1746675458614,0.5719848,98846.0,98845.0,0.311]
[1746675459313,0.5719848,98846.0,98845.0,0.331]
[1746675459719,0.5709848,98846.0,98845.0,0.33]
[1746675460015,0.5719848,98846.0,98845.0,0.351]
[1746675461518,0.5709848,98846.0,98845.0,0.351]
[1746675462216,0.5719848,98846.0,98845.0,0.352]
[1746675462809,0.5709848,98846.0,98845.0,0.351]
[1746675463009,0.5719848,98846.0,98845.0,0.352]
[1746675464116,0.5719848,98846.0,98845.0,0.332]
[1746675464317,0.5719848,98846.0,98845.0,0.362]
[1746675468817,0.5719848,98846.0,98845.0,0.152]
[1746675469021,0.5719848,98846.0,98845.0,0.102]
[1746675470809,1.2935848,98846.0,98845.0,0.122]
[1746675471214,1.2925848,98846.0,98845.0,0.121]
[1746675471517,1.2935848,98846.0,98845.0,0.122]
[1746675471820,1.2925848,98846.0,98845.0,0.121]
[1746675472009,1.2935848,98846.0,98845.0,0.122]
[1746675472519,1.2925848,98846.0,98845.0,0.121]
[1746675472719,0.36966,98846.0,98845.0,0.3243268]
[1746675473218,0.5719848,98846.0,98845.0,0.3443268]
[1746675473713,0.36966,98846.0,98845.0,0.4673268]
[1746675473913,0.25096,98846.0,98845.0,0.4673268]
[1746675474113,0.08296,98846.0,98845.0,0.4673268]
[1746675474522,0.08296,98846.0,98845.0,0.5473268]
[1746675476125,0.25096,98846.0,98845.0,0.5473268]
[1746675480632,0.25096,98846.0,98845.0,0.4473268]
[1746675480927,0.25096,98846.0,98845.0,0.255]
[1746675481926,0.25096,98846.0,98845.0,0.4573268]
[1746675482521,0.25096,98846.0,98845.0,0.5473268]
[1746675484131,0.08296,98846.0,98845.0,0.5473268]
[1746675484330,0.02600001,98846.0,98845.0,0.5473268]
[1746675484520,0.0505649,98878.0,98845.0,0.9758]
[1746675484725,0.0605,98877.0,98869.0,0.0505694]
[1746675484925,0.1110655,98877.0,98870.0,0.1851]
[1746675485123,0.2285,98877.0,98870.0,0.6951]
[1746675485429,0.168,98877.0,98876.0,0.1213234]
[1746675485730,0.168,98877.0,98876.0,0.5813234]
[1746675486227,0.08094,98879.0,98878.0,0.2022593]
[1746675486528,0.08094,98879.0,98878.0,0.8346593]
[1746675487520,0.08494,98879.0,98878.0,0.8346593]
[1746675488127,0.01750121,98879.0,98878.0,0.8346593]
[1746675488323,0.3442588,98893.0,98892.0,0.2022307]
[1746675488523,0.3442588,98893.0,98892.0,0.7757107]
[1746675489128,0.5122588,98893.0,98892.0,0.8978107]
[1746675489619,0.168,98893.0,98892.0,0.8978107]
[1746675490334,0.169,98893.0,98892.0,0.8998107]
[1746675490632,0.171,98893.0,98892.0,0.9008107]
[1746675490835,0.11418577,98893.0,98892.0,0.90836864]
[1746675491129,0.04552601,98895.0,98894.0,0.2022266]
[1746675491433,0.1269,98911.0,98899.0,0.2022164]
[1746675491730,0.1269,98911.0,98899.0,0.77356369]
[1746675492124,0.268,98900.0,98899.0,0.77356369]
[1746675492327,0.268,98900.0,98899.0,0.89596369]
[1746675493127,0.1,98900.0,98899.0,0.89596369]
[1746675494931,0.102,98900.0,98899.0,0.89696369]
[1746675495132,0.27,98900.0,98899.0,0.89696369]
[1746675495332,0.27,98900.0,98899.0,0.82696369]
[1746675497428,0.27,98900.0,98899.0,0.93696369]
[1746675499532,0.27,98900.0,98899.0,0.36354729]
[1746675499533,0.4722143,98900.0,98899.0,0.36354729]
[1746675499834,0.27,98900.0,98899.0,0.68900369]
[1746675500430,0.27,98900.0,98899.0,0.66900369]
[1746675500630,0.27,98900.0,98899.0,0.79900369]
[1746675500830,0.27,98900.0,98899.0,1.00900369]
[1746675503237,0.102,98900.0,98899.0,1.00900369]
[1746675503634,0.102,98900.0,98899.0,0.92576369]
[1746675503837,0.102,98900.0,98899.0,1.00900369]
[1746675504229,0.27,98900.0,98899.0,1.00900369]
[1746675507527,0.27,98900.0,98899.0,0.36354729]
[1746675507730,0.27,98900.0,98899.0,0.66900369]
[1746675508325,0.27,98900.0,98899.0,0.67900369]
[1746675508532,0.6308,98900.0,98899.0,0.04]
[1746675508735,0.0505541,98899.0,98886.0,0.08324]
[1746675508935,0.5630409,98887.0,98886.0,0.08324]
[1746675509132,0.7310409,98887.0,98886.0,0.08324]
[1746675509340,0.7310409,98887.0,98886.0,0.04771]
[1746675509732,0.2022593,98878.0,98876.0,0.01]
[1746675509938,0.5630593,98878.0,98877.0,0.01914985]
[1746675510240,0.5630593,98878.0,98857.0,0.98048]
[1746675510241,0.2022801,98868.0,98862.0,0.2022914]
[1746675510432,0.2630829,98867.0,98862.0,0.25]
[1746675510633,0.1196,98867.0,98862.0,0.4522911]
[1746675510835,0.0628,98866.0,98862.0,0.4522911]
[1746675511132,0.2308,98866.0,98863.0,0.20229]
[1746675511339,0.0625,98865.0,98863.0,0.57337277]
[1746675511526,0.0625,98865.0,98863.0,0.58337277]
[1746675511735,0.0625,98865.0,98864.0,0.0634]
[1746675511930,0.0625,98865.0,98864.0,0.63339128]
[1746675512250,0.2305,98865.0,98864.0,0.67339128]
[1746675512443,0.2305,98865.0,98864.0,0.73469128]
[1746675513542,0.2315,98865.0,98864.0,0.74069128]
[1746675513741,0.2325,98865.0,98864.0,0.82469128]
[1746675516144,0.17,98865.0,98864.0,0.82469128]
[1746675517239,0.16498079,98865.0,98864.0,0.82469128]
[1746675517839,0.15711737,98865.0,98864.0,0.82469128]
[1746675518738,0.13456833,98865.0,98864.0,0.82469128]
[1746675519145,0.12402669,98865.0,98864.0,0.82469128]
[1746675519845,0.12402669,98865.0,98864.0,0.62240338]
[1746675520045,0.12402669,98865.0,98864.0,0.44110338]
[1746675520242,0.12402669,98865.0,98864.0,0.52438338]
[1746675520445,0.12402669,98865.0,98864.0,0.65667128]
[1746675520645,0.12402669,98865.0,98864.0,0.45438338]
[1746675521234,0.12402669,98865.0,98864.0,0.65667128]
[1746675521745,0.12402669,98865.0,98864.0,0.66667128]
[1746675522348,0.32631259,98865.0,98864.0,0.42098338]
[1746675522538,0.12402669,98865.0,98864.0,0.19098338]
[1746675522735,0.12402669,98865.0,98864.0,0.42098338]
[1746675524441,0.24792669,98865.0,98864.0,0.42098338]
[1746675524942,0.24792669,98865.0,98864.0,0.62327128]
[1746675525437,0.24792669,98865.0,98864.0,0.60109128]
[1746675526947,0.45021259,98865.0,98864.0,0.33770338]
[1746675527149,0.2023023,98857.0,98856.0,0.00151741]
[1746675527342,0.2023289,98844.0,98835.0,0.2023459]
[1746675527544,0.2023289,98844.0,98843.0,0.03614359]
[1746675527743,0.2023289,98844.0,98843.0,0.29614359]
[1746675527953,0.2023289,98844.0,98843.0,0.27614359]
[1746675528252,0.4958289,98844.0,98843.0,0.29614359]
[1746675528552,0.4958289,98844.0,98843.0,0.34721945]
[1746675528746,0.4958289,98844.0,98843.0,0.07721945]
[1746675528948,0.4958289,98844.0,98843.0,0.41721945]
[1746675529151,0.4958289,98844.0,98843.0,0.42321945]
[1746675529451,0.4978289,98844.0,98843.0,0.42321945]
[1746675529844,0.4978289,98844.0,98843.0,0.43321945]
[1746675530046,0.4978289,98844.0,98843.0,0.46094152]
[1746675530344,0.4968289,98844.0,98843.0,0.45594152]
[1746675531053,0.4968289,98844.0,98843.0,0.23594152]
[1746675531254,0.4968289,98844.0,98843.0,0.42594152]
[1746675531846,0.4968289,98844.0,98843.0,0.43594152]
[1746675532755,0.4968289,98844.0,98843.0,0.42594152]
[1746675533050,0.4968289,98844.0,98843.0,0.44594152]
[1746675533556,0.4968289,98844.0,98843.0,0.43594152]
[1746675533754,0.4968289,98844.0,98843.0,0.12594152]
[1746675533950,0.4968289,98844.0,98843.0,0.43594152]
[1746675534963,0.4968289,98844.0,98843.0,0.39594152]
[1746675536363,0.4968289,98844.0,98843.0,0.38594152]
[1746675536557,0.4968289,98844.0,98843.0,0.39594152]
[1746675536763,0.4968289,98844.0,98843.0,0.38594152]
[1746675537656,0.4968289,98844.0,98843.0,0.45614152]
[1746675538057,0.4968289,98844.0,98843.0,0.44614152]
[1746675538260,0.4968289,98844.0,98843.0,0.46614152]
[1746675541168,0.4968289,98844.0,98843.0,0.38594152]
[1746675541466,0.4968289,98844.0,98843.0,0.16594152]
[1746675542059,0.4968289,98844.0,98843.0,0.12594152]
[1746675542260,0.4968289,98844.0,98843.0,0.13594152]
[1746675542664,0.4968289,98844.0,98843.0,0.14594152]
[1746675544266,0.2945,98844.0,98843.0,0.62997242]
[1746675544465,0.4968289,98844.0,98843.0,0.69207242]
[1746675544964,0.4968289,98844.0,98843.0,0.49974152]
[1746675546267,0.4968289,98844.0,98843.0,0.48974152]
[1746675546566,0.4968289,98844.0,98843.0,0.46974152]
[1746675546965,0.4968289,98844.0,98843.0,0.49974152]
[1746675547571,0.3713289,98844.0,98843.0,0.49974152]
[1746675547773,0.3713289,98844.0,98843.0,0.70207242]
[1746675547974,0.3713289,98844.0,98843.0,0.49974152]
[1746675548166,0.169,98844.0,98843.0,1.06287242]
[1746675548965,0.169,98844.0,98843.0,1.35287242]
[1746675552158,0.169,98844.0,98843.0,1.15054152]
[1746675552360,0.3713289,98844.0,98843.0,0.45974152]
[1746675553066,0.3713289,98844.0,98843.0,0.49974152]
[1746675553571,0.3713289,98844.0,98843.0,0.52974152]
[1746675553773,0.3713289,98844.0,98843.0,0.46764152]
[1746675554072,0.3713289,98844.0,98843.0,0.39764152]
[1746675554273,0.3713289,98844.0,98843.0,0.43764152]
[1746675554474,0.3713289,98844.0,98843.0,0.39764152]
[1746675554675,0.3713289,98844.0,98843.0,0.47764152]
[1746675556869,0.3713289,98844.0,98843.0,0.44764152]
[1746675557371,0.3713289,98844.0,98843.0,0.14764152]
[1746675557569,0.3713289,98844.0,98843.0,0.40764152]
[1746675558376,0.3713289,98844.0,98843.0,0.48764152]
[1746675559575,0.2023493,98834.0,98833.0,0.13]
[1746675559770,0.2023657,98826.0,98809.0,0.08304]
[1746675559970,0.5631657,98826.0,98825.0,1e-08]
[1746675560173,0.7311657,98826.0,98825.0,1e-08]
[1746675560469,0.2024026,98808.0,98791.0,0.3623184]
[1746675560778,0.2024026,98808.0,98807.0,0.06022263]
[1746675560779,0.5632026,98808.0,98807.0,0.06022263]
[1746675560969,0.5632026,98808.0,98807.0,0.0115181]
[1746675561167,0.7312026,98808.0,98807.0,0.0115181]
[1746675561480,0.202421,98799.0,98798.0,0.35553051]
[1746675561669,0.202421,98799.0,98798.0,0.47553051]
[1746675562071,0.370421,98799.0,98798.0,0.48553051]
[1746675562271,0.496021,98799.0,98798.0,0.48553051]
[1746675562676,0.496021,98799.0,98798.0,0.28310821]
[1746675562872,0.496021,98799.0,98798.0,0.33485231]
[1746675563274,0.496021,98799.0,98798.0,0.34249021]
[1746675563673,0.498021,98799.0,98798.0,0.33449021]
[1746675563871,0.498021,98799.0,98798.0,0.35449021]
[1746675564072,0.498021,98799.0,98798.0,0.53449021]
[1746675564272,0.498021,98799.0,98798.0,0.381382]
[1746675564479,0.498021,98799.0,98798.0,0.431382]
[1746675565480,0.498021,98799.0,98798.0,0.381382]
[1746675565481,0.497021,98799.0,98798.0,0.381382]
[1746675565680,0.498021,98799.0,98798.0,0.391382]
[1746675565881,0.498021,98799.0,98798.0,0.061382]
[1746675566183,0.858821,98799.0,98798.0,0.081382]
[1746675566782,0.858821,98799.0,98798.0,0.0096379]
[1746675567376,0.0506076,98795.0,98791.0,0.0015184]
[1746675567680,0.2024354,98792.0,98791.0,0.30166235]
[1746675567881,0.2024354,98792.0,98791.0,0.2515184]
[1746675568273,0.3704354,98792.0,98791.0,0.2915184]
[1746675568575,0.3704354,98792.0,98791.0,0.2515184]
[1746675568773,0.3704354,98792.0,98791.0,0.3015184]
[1746675569276,0.3714354,98792.0,98791.0,0.3035184]
[1746675569882,0.3714354,98792.0,98791.0,0.31110528]
[1746675570282,0.3714354,98792.0,98791.0,0.32110528]
[1746675570482,0.17,98792.0,98791.0,0.38420528]
[1746675570675,0.17,98792.0,98791.0,0.69843053]
[1746675572281,0.17,98792.0,98791.0,0.81843053]
[1746675575284,0.14462135,98792.0,98791.0,0.81843053]
[1746675577187,0.081,98801.0,98800.0,0.202419]
[1746675577382,0.081,98801.0,98800.0,1.023219]
[1746675577885,0.2023707,98824.0,98807.0,0.0506007]
[1746675578081,0.0617,98818.0,98814.0,0.2023888]
[1746675578281,0.0617,98818.0,98817.0,0.2023842]
[1746675578476,0.16951859,98819.0,98818.0,0.2023821]
[1746675578676,0.16951859,98819.0,98818.0,0.6714821]
[1746675578884,0.16951859,98819.0,98818.0,0.7114821]
[1746675579185,0.00151859,98819.0,98818.0,0.7114821]
[1746675580081,0.16951859,98819.0,98818.0,0.7114821]
[1746675580690,0.17451859,98819.0,98818.0,0.7134821]
[1746675581087,0.17151859,98819.0,98818.0,0.7124821]
[1746675581286,0.17351859,98819.0,98818.0,0.7134821]
[1746675581791,0.17351859,98819.0,98818.0,0.7634821]
[1746675582386,0.17351859,98819.0,98818.0,1.1242821]
[1746675582589,0.23351859,98819.0,98818.0,1.1242821]
[1746675584285,0.23351859,98819.0,98818.0,0.7634821]
[1746675584492,0.23351859,98819.0,98818.0,1.1242821]
[1746675584793,0.23351859,98819.0,98818.0,1.2072021]
[1746675588291,0.23351859,98819.0,98818.0,0.8464021]
[1746675588492,0.23351859,98819.0,98818.0,1.2072021]
[1746675590291,0.23351859,98819.0,98818.0,0.8464021]
[1746675590490,0.23351859,98819.0,98818.0,1.2072021]
[1746675591688,0.12695861,98819.0,98818.0,1.2072021]
[1746675591882,0.0015,98825.0,98824.0,0.2023698]
[1746675592085,0.1695,98825.0,98824.0,0.7523698]
[1746675592593,0.1695,98825.0,98824.0,0.8744698]
[1746675593184,0.0045,98825.0,98824.0,0.8744698]
[1746675593991,0.0075,98825.0,98824.0,0.8754698]
[1746675594192,0.1755,98825.0,98824.0,0.8754698]
[1746675596993,0.1755,98825.0,98824.0,0.9583898]
[1746675599195,0.0075,98825.0,98824.0,0.9583898]
[1746675599994,0.0683,98825.0,98824.0,0.9583898]
[1746675600198,0.2363,98825.0,98824.0,0.9583898]
[1746675601393,0.1755,98825.0,98824.0,0.9583898]
[1746675601594,0.2348,98825.0,98824.0,0.9583898]
[1746675601993,0.2956,98825.0,98824.0,0.9583898]
[1746675604501,0.2348,98825.0,98824.0,0.9583898]
[1746675605101,0.0668,98825.0,98824.0,0.8973898]
[1746675605300,0.1299,98825.0,98824.0,0.8973898]
[1746675606101,0.2979,98825.0,98824.0,0.8973898]
[1746675608407,0.2979,98825.0,98824.0,1.2581898]
[1746675624921,0.3581,98825.0,98824.0,0.99472]
[1746675625116,0.3581,98825.0,98824.0,0.91472]
[1746675625315,0.3581,98825.0,98824.0,0.93472]
[1746675627825,0.3581,98825.0,98824.0,1.04472]
[1746675629125,0.3581,98825.0,98824.0,1.2470898]
[1746675632526,0.3581,98825.0,98824.0,1.3064898]
[1746675632726,0.2348,98825.0,98824.0,1.3064898]
[1746675634129,0.0668,98825.0,98824.0,1.3064898]
[1746675634528,0.01710001,98825.0,98824.0,1.3064898]
[1746675634730,0.001,98826.0,98825.0,0.2023678]
[1746675635026,0.001,98826.0,98825.0,0.9522678]
[1746675635227,0.001,98826.0,98825.0,1.0115678]